bitfinex/quotes_ETHUSD_20250222
["timestamp","ask_amount","ask_price","bid_price","bid_amount"]
[1740239821046,3.59945,2778.2,2778.1,7.01e-06]
[1740239821985,0.7814,2779.2,2778.1,7.01e-06]
[1740239822190,3.59908,2778.5,2778.1,7.01e-06]
[1740239822385,3.59881,2778.7,2777.9,3.59982]
[1740239822710,3.59894,2778.6,2777.9,3.59982]
[1740239822928,3.59894,2778.6,2778.2,0.52345548]
[1740239823132,3.59908,2778.5,2778.2,0.52345548]
[1740239823316,3.59894,2778.6,2778.3,0.06047832]
[1740239823650,3.59884,2778.7,2778.2,0.52345548]
[1740239823942,3.59884,2778.7,2778.3,0.06047832]
[1740239824109,3.59897,2778.6,2778.3,0.06047832]
[1740239824310,3.59915,2778.5,2778.2,0.52345548]
[1740239824514,3.59884,2778.7,2778.4,0.06040095]
[1740239824737,3.59841,2779.0,2778.4,3.59916]
[1740239824937,3.59868,2778.8,2778.5,0.06032358]
[1740239825442,3.59844,2779.0,2777.9,0.26030976]
[1740239825636,3.59863,2778.9,2778.2,3.59936]
[1740239825837,3.59863,2778.9,2778.3,0.06047832]
[1740239826154,3.59877,2778.8,2778.3,0.06047832]
[1740239826442,3.59877,2778.8,2778.0,0.52231066]
[1740239826443,3.59919,2778.4,2778.0,0.52231066]
[1740239826670,0.359877,2778.8,2778.0,0.52231066]
[1740239826949,7.35,2779.4,2778.1,0.06063309]
[1740239827143,3.59867,2778.8,2778.1,0.06063309]
[1740239827345,3.59863,2778.9,2778.1,0.41826537]
[1740239827561,3.5972,2780.0,2778.2,0.06069089]
[1740239827726,3.59773,2779.6,2778.9,3.59854]
[1740239828047,3.59759,2779.7,2779.1,3.5982]
[1740239828349,3.59762,2779.7,2779.2,0.05988552]
[1740239828646,3.59744,2779.8,2779.1,3.59817]
[1740239828819,3.59677,2780.3,2779.4,3.59788]
[1740239829025,0.7532,2780.6,2779.5,0.05933551]
[1740239829253,0.7532,2781.1,2779.5,0.416]
[1740239829550,3.59562,2781.2,2780.5,3.59646]
[1740239829747,0.7532,2781.6,2780.2,3.59682]
[1740239829748,3.59597,2780.9,2780.2,3.59682]
[1740239829922,3.59597,2780.9,2779.5,4.97717438]
[1740239829923,0.7532,2781.6,2780.6,0.0574999]
[1740239830123,4.9463058,2782.0,2779.5,4.56117438]
[1740239830124,0.38513142,2782.0,2780.9,3.59584]
[1740239830317,0.38513142,2782.0,2780.5,0.416]
[1740239830533,3.59517,2781.6,2781.0,0.05719094]
[1740239830864,0.01426947,2782.0,2781.1,0.05635119]
[1740239831030,0.01426947,2782.0,2780.5,0.416]
[1740239831235,3.59468,2781.9,2780.6,0.05673737]
[1740239831648,3.59468,2781.9,2780.9,3.59585]
[1740239831842,3.59468,2781.9,2781.0,3.65218841]
[1740239832082,3.60883947,2782.0,2781.2,3.59545]
[1740239832260,0.01426947,2782.0,2781.3,0.05619675]
[1740239832764,0.01426947,2782.0,2781.3,0.57850741]
[1740239832969,3.60885947,2782.0,2781.3,0.52231066]
[1740239833171,3.59469,2781.9,2781.3,0.52231066]
[1740239833371,0.01426947,2782.0,2781.4,0.05228973]
[1740239833539,0.01426947,2782.0,2781.3,0.52231066]
[1740239833540,3.59466,2781.9,2781.3,0.52231066]
[1740239833740,3.59479,2781.8,2781.5,0.05221253]
[1740239833955,3.59505,2781.6,2781.4,0.05228973]
[1740239834273,3.59505,2781.6,2781.5,0.32476861]
[1740239834448,3.59494,2781.7,2781.5,0.37698114]
[1740239834834,3.59468,2781.9,2781.5,0.37698114]
[1740239835152,3.60882947,2782.0,2781.5,0.37698114]
[1740239835361,3.59466,2781.9,2781.5,0.37698114]
[1740239835567,3.5948,2781.8,2781.5,0.32476861]
[1740239835888,0.01426947,2782.0,2781.6,0.05213533]
[1740239836191,3.59509,2781.6,2781.1,0.32476861]
[1740239836387,0.01426947,2782.0,2781.7,0.05205814]
[1740239836595,0.01426947,2782.0,2781.1,0.32476861]
[1740239836747,0.01426947,2782.0,2781.6,3.595]
[1740239836941,3.60883947,2782.0,2781.2,3.64796415]
[1740239837187,0.01426947,2782.0,2780.9,3.92065861]
[1740239837355,3.60881947,2782.0,2781.0,3.59579]
[1740239837549,3.59489,2781.8,2781.0,3.59579]
[1740239837776,3.59501,2781.7,2781.0,3.59579]
[1740239837993,3.59479,2781.8,2780.9,0.32476861]
[1740239838318,3.59525,2781.5,2780.9,0.32476861]
[1740239838786,3.59531,2781.4,2781.1,0.32476861]
[1740239839165,3.59521,2781.5,2781.1,0.32476861]
[1740239839372,0.36090595,2781.8,2781.1,0.32476861]
[1740239839698,3.59492,2781.7,2781.1,0.32476861]
[1740239839897,3.59467,2781.9,2781.2,3.59554]
[1740239840370,3.59467,2781.9,2781.3,0.05028345]
[1740239840571,0.01426947,2782.0,2781.9,3.59466]
[1740239840903,0.01426947,2782.0,2781.9,3.64459127]
[1740239841273,0.01426947,2782.0,2781.9,0.04993127]
[1740239841474,0.01426947,2782.0,2781.3,3.59538]
[1740239841689,3.59479,2781.8,2781.4,0.05031723]
[1740239841890,3.60883947,2782.0,2781.3,3.59532]
[1740239842094,0.01426947,2782.0,2781.4,0.05031723]
[1740239842404,0.01426947,2782.0,2781.6,3.59495]
[1740239842606,0.01426947,2782.0,2781.5,0.05024002]
[1740239842808,3.60889947,2782.0,2781.7,0.05008563]
[1740239843107,3.59551,2781.3,2780.3,3.59673]
[1740239843307,3.59551,2781.3,2780.7,0.51696613]
[1740239843673,3.59605,2780.9,2780.7,0.51696613]
[1740239843881,3.59608,2780.8,2780.7,0.51696613]
[1740239844310,0.36088995,2781.9,2780.7,0.51696613]
[1740239844608,3.5955,2781.3,2780.7,0.51696613]
[1740239844788,3.59558,2781.2,2780.4,3.59647]
[1740239844980,3.59532,2781.4,2780.1,0.402]
[1740239845193,3.59532,2781.4,2780.6,3.59623]
[1740239845393,0.39698094,2781.8,2780.1,0.402]
[1740239845692,3.5947,2781.9,2781.1,3.59558]
[1740239845874,3.60882947,2782.0,2781.3,3.59533]
[1740239846069,0.01426947,2782.0,2781.3,3.59533]
[1740239846305,0.01426947,2782.0,2781.1,3.59568]
[1740239846613,0.01426947,2782.0,2781.0,3.59571]
[1740239846787,3.59497,2781.7,2781.0,3.59571]
[1740239847105,0.005,2783.4,2783.3,3.59285]
[1740239847269,0.8266,2785.8,2784.3,3.59156]
[1740239847469,1.079662,2785.5,2784.3,3.59156]
[1740239847672,3.58951,2785.9,2784.7,3.59104]
[1740239847908,0.8266,2786.4,2784.1,0.26826136]
[1740239848083,3.58957,2785.9,2784.1,0.26826136]
[1740239848282,3.60418689,2786.1,2785.0,3.59066]
[1740239848505,0.01481689,2786.1,2784.9,0.424]
[1740239848804,0.01481689,2786.1,2785.6,3.58985]
[1740239849003,0.01481689,2786.1,2784.8,1.078605]
[1740239849209,0.01481689,2786.1,2784.9,0.432]
[1740239849412,0.01481689,2786.1,2785.0,4.56117438]
[1740239849730,0.01481689,2786.1,2785.1,3.0]
[1740239849891,0.01481689,2786.1,2785.8,3.5895]
[1740239850099,0.01481689,2786.1,2785.6,0.434]
[1740239850281,0.01481689,2786.1,2785.3,3.59017]
[1740239850282,0.21643574,2786.1,2785.3,3.59017]
[1740239850620,0.21643574,2786.1,2785.1,0.3200441]
[1740239850915,3.58957,2785.9,2785.1,0.3200441]
[1740239851208,3.5902,2785.4,2785.1,0.3200441]
[1740239851399,3.59029,2785.3,2785.1,0.3200441]
[1740239851597,3.58976,2785.7,2784.3,1.078761]
[1740239851796,3.59051,2785.2,2783.8,0.5483]
[1740239851979,4.76279323,2785.9,2784.4,0.03845828]
[1740239851980,0.20161885,2785.9,2784.4,0.03845828]
[1740239852179,3.79116885,2785.9,2784.9,3.59071]
[1740239852521,0.20161885,2785.9,2785.0,3.63156892]
[1740239852681,0.20161885,2785.9,2785.0,0.04091892]
[1740239853012,0.20161885,2785.9,2785.2,3.59038]
[1740239853212,0.20161885,2785.9,2785.1,4.067346]
[1740239853403,0.20161885,2785.9,2785.3,0.04067016]
[1740239853581,0.20161885,2785.9,2785.2,0.04075308]
[1740239853909,0.20161885,2785.9,2785.3,0.88239647]
[1740239854231,0.20161885,2785.9,2785.4,3.59012]
[1740239854529,0.20161885,2785.9,2785.5,0.04050435]
[1740239855021,3e-08,2786.1,2786.0,3.58937]
[1740239855175,3e-08,2786.1,2786.0,4.02337]
[1740239855375,3e-08,2786.1,2786.0,15.82808775]
[1740239855678,0.00271715,2788.7,2786.0,15.82808775]
[1740239855679,0.093979,2787.3,2787.2,3.58783]
[1740239855878,9e-06,2787.3,2787.2,4.26418389]
[1740239856079,0.00271715,2788.7,2788.3,3.58641]
[1740239856279,0.00271715,2788.7,2788.3,4.30371]
[1740239856504,0.00271715,2788.7,2788.3,0.04136758]
[1740239856676,0.00271715,2788.7,2788.0,3.58674]
[1740239856874,0.00271715,2788.7,2788.1,0.04532384]
[1740239857188,0.00271715,2788.7,2787.9,0.437]
[1740239857394,0.00271715,2788.7,2788.3,11.08641]
[1740239857577,0.00271715,2788.7,2788.3,8.51434104]
[1740239857782,0.00271715,2788.7,2788.3,8.55946931]
[1740239858179,0.00271715,2788.7,2788.3,3.04512827]
[1740239858486,1.13833101,2788.8,2788.4,6.58618]
[1740239858800,1.13833101,2788.8,2788.3,0.51618014]
[1740239859003,1.13833101,2788.8,2788.3,3.51618014]
[1740239859179,4.72413101,2788.8,2788.3,0.51618014]
[1740239859380,3.58628,2788.4,2788.3,0.51618014]
[1740239859591,4.72412101,2788.8,2788.3,0.51618014]
[1740239859799,1.13833101,2788.8,2787.6,3.58719]
[1740239859981,1.13833101,2788.8,2787.8,3.0]
[1740239860182,1.13833101,2788.8,2787.4,8.14872438]
[1740239860446,3.58683,2788.0,2787.0,4.56117438]
[1740239860616,3.58654,2788.3,2787.0,4.56117438]
[1740239860918,3.58705,2787.8,2787.7,0.29185568]
[1740239861617,3.58718,2787.7,2787.6,0.15639731]
[1740239861850,3.58847,2786.7,2786.0,0.72603821]
[1740239862057,3.58849,2786.7,2785.4,4.56117438]
[1740239862181,3.58924,2786.1,2786.0,0.22459056]
[1740239862826,0.8114,2786.2,2786.0,0.22459056]
[1740239863318,3.58924,2786.1,2786.0,0.22459056]
[1740239863679,3.59057,2785.1,2784.1,18.73117438]
[1740239863998,3.59043,2785.2,2784.8,0.72941513]
[1740239864226,3.59033,2785.3,2784.3,8.8]
[1740239864546,0.8114,2786.2,2784.3,8.8]
[1740239864716,3.5902,2785.4,2784.4,8.85043977]
[1740239864919,3.59002,2785.5,2784.5,8.8]
[1740239865117,3.59003,2785.5,2784.6,0.05022408]
[1740239865332,3.58808,2787.0,2784.9,4.56117438]
[1740239865518,3.58874,2786.5,2785.1,3.0]
[1740239865851,3.58916,2786.2,2785.2,0.05557644]
[1740239866007,3.5893,2786.1,2785.2,8.85557644]
[1740239866211,3.5893,2786.1,2785.2,10.40019908]
[1740239866623,3.58949,2786.0,2785.2,10.40019908]
[1740239866826,3.58949,2786.0,2785.2,8.85557644]
[1740239867036,3.59014,2785.5,2785.2,0.05557644]
[1740239867239,3.59003,2785.5,2785.2,0.05557644]
[1740239867443,0.8126,2786.1,2784.7,0.15686779]
[1740239867742,3.59007,2785.5,2784.8,0.05970991]
[1740239867985,3.59041,2785.2,2784.8,0.05970991]
[1740239868247,3.59041,2785.2,2784.7,0.15686779]
[1740239868248,3.59092,2784.8,2784.7,0.15686779]
[1740239868549,3.59092,2784.8,2784.7,0.21696069]
[1740239868723,3.59092,2784.8,2784.7,0.0600929]
[1740239868923,3.5913,2784.5,2784.4,0.15686779]
[1740239870461,3.59092,2784.8,2783.5,0.15686779]
[1740239870649,3.59177,2784.2,2783.5,0.15686779]
[1740239870948,3.59158,2784.3,2783.6,0.05538416]
[1740239871253,3.59206,2784.0,2783.6,0.05538416]
[1740239871550,3.59234,2783.7,2783.6,0.05538416]
[1740239871760,3.59194,2784.1,2783.6,0.05538416]
[1740239871964,3.59209,2783.9,2783.7,0.15686779]
[1740239872132,3.59209,2783.9,2783.7,0.21213205]
[1740239872333,3.59221,2783.8,2783.7,0.21213205]
[1740239872559,3.59213,2783.9,2783.7,0.05526426]
[1740239872771,3.59221,2783.8,2783.7,0.05526426]
[1740239873071,3.59283,2783.4,2782.6,8.8]
[1740239873226,3.59213,2783.9,2782.9,7.18666]
[1740239873227,3.59232,2783.8,2782.9,7.18666]
[1740239873430,0.8141,2783.9,2783.0,0.718666]
[1740239873758,3.59225,2783.8,2783.0,0.76555376]
[1740239873941,3.59247,2783.6,2783.0,0.76555376]
[1740239874266,3.59225,2783.8,2783.0,0.04688776]
[1740239874575,0.8141,2784.6,2783.2,0.15606126]
[1740239874925,3.59189,2784.1,2783.3,0.04682413]
[1740239875135,3.59232,2783.8,2783.3,0.04682413]
[1740239875374,3.5913,2784.5,2783.3,0.04682413]
[1740239875581,3.59143,2784.4,2783.2,0.15606126]
[1740239875747,3.59284,2783.4,2783.2,0.15606126]
[1740239875942,3.59284,2783.4,2782.7,8.8]
[1740239876533,3.59287,2783.3,2782.7,8.8]
[1740239876865,3.59287,2783.3,2782.3,3.59414]
[1740239877068,3.59338,2782.9,2782.4,1.239414]
[1740239877233,0.8141,2784.6,2783.1,0.15507403]
[1740239877432,3.59245,2783.7,2783.1,0.15507403]
[1740239877639,3.59249,2783.6,2783.1,0.15507403]
[1740239877842,0.8141,2784.6,2783.2,3.59289]
[1740239878164,0.8141,2784.6,2783.1,1.40991743]
[1740239878165,3.59209,2783.9,2783.1,1.40991743]
[1740239878467,3.59221,2783.8,2783.1,1.2548434]
[1740239878771,0.8141,2784.6,2783.1,1.2548434]
[1740239879071,3.59232,2783.8,2783.1,1.2548434]
[1740239879245,3.59232,2783.8,2783.5,0.15505518]
[1740239879786,0.00160001,2784.9,2783.9,3.592]
[1740239879958,3.591,2784.8,2784.0,0.3592]
[1740239880158,3.59105,2784.7,2783.9,3.59199]
[1740239880357,3.59105,2784.7,2783.7,3.59234]
[1740239880556,3.5917,2784.2,2783.6,8.8]
[1740239880786,3.59182,2784.1,2784.0,0.51726441]
[1740239881138,4.40592,2784.1,2784.0,0.51726441]
[1740239881438,4.40592,2784.1,2784.0,4.41e-06]
[1740239881748,3.59148,2784.4,2783.0,8.8]
[1740239881935,3.59175,2784.2,2783.3,3.59279]
[1740239882137,0.00160001,2784.9,2783.3,4.98617438]
[1740239882338,0.00160001,2784.9,2784.1,3.59171]
[1740239882575,3.59109,2784.7,2784.1,0.359171]
[1740239882738,3.59118,2784.6,2783.6,6.59245]
[1740239882933,3.59132,2784.5,2784.1,0.15486472]
[1740239883360,3.59148,2784.4,2784.1,0.15486472]
[1740239883572,3.59108,2784.7,2784.1,0.15486472]
[1740239883768,3.59118,2784.6,2784.1,0.15486472]
[1740239884091,3.59169,2784.2,2784.1,0.15486472]
[1740239884236,0.00160001,2784.9,2783.2,4.56117438]
[1740239884441,3.59248001,2784.9,2784.0,3.59188]
[1740239884641,3.59113,2784.7,2783.9,3.59207]
[1740239885372,3.59167,2784.3,2783.9,5.37]
[1740239885692,3.59107,2784.7,2783.9,5.37]
[1740239885895,3.59144,2784.4,2783.9,5.37]
[1740239886045,3.59168,2784.3,2783.9,5.37]
[1740239886240,3.59168,2784.3,2784.2,0.15447406]
[1740239886666,4.36807176,2784.3,2784.2,0.15447406]
[1740239886975,4.36878,2784.3,2784.2,4.06e-06]
[1740239887178,4.36878,2784.3,2782.8,5.37]
[1740239887179,3.59325,2783.0,2782.8,5.37]
[1740239887340,3.59325,2783.0,2782.6,0.33721678]
[1740239887537,0.7771,2783.4,2782.6,0.33721678]
[1740239887771,3.59346,2782.9,2782.6,1.06602995]
[1740239887989,3.59376,2782.6,2782.5,5.71150094]
[1740239888155,3.59452,2782.1,2781.7,5.70721678]
[1740239888355,0.7771,2782.5,2781.7,0.33721678]
[1740239888751,3.59479,2781.8,2781.7,0.33721678]
[1740239889470,3.59498,2781.7,2781.3,0.34150094]
[1740239889676,3.59498,2781.7,2780.8,3.59605]
[1740239889889,3.59426,2782.3,2780.9,3.955515]
[1740239890181,3.59464,2782.0,2781.1,3.59566]
[1740239890350,3.59464,2782.0,2780.9,3.955535]
[1740239890351,0.7771,2782.5,2781.2,0.7327268]
[1740239890549,3.59547,2781.3,2780.9,0.359605]
[1740239890799,3.59547,2781.3,2781.0,0.22504432]
[1740239891082,3.59503,2781.7,2781.0,0.54876102]
[1740239891269,3.5947,2781.9,2781.0,0.54876102]
[1740239891471,3.59457,2782.0,2781.2,3.5955]
[1740239891674,0.7771,2782.5,2781.3,0.35955]
[1740239891993,3.59508,2781.6,2781.3,0.40508403]
[1740239892373,0.7771,2782.5,2781.3,0.40508403]
[1740239892848,3.59505,2781.7,2781.1,0.3237167]
[1740239893052,3.59468,2781.9,2780.9,4.31577784]
[1740239893053,3.59468,2781.9,2780.9,0.71983784]
[1740239893348,0.7771,2782.5,2780.9,4.31575784]
[1740239893678,0.9771,2782.5,2780.4,5.37]
[1740239893883,3.5958,2781.1,2781.0,0.32401729]
[1740239895662,3.59611,2780.8,2780.4,0.18004291]
[1740239895859,3.59531,2781.4,2780.4,0.18004291]
[1740239896061,6.0855,2781.5,2780.4,0.18004291]
[1740239896299,3.59559,2781.2,2780.5,3.59645]
[1740239896462,3.59544,2781.3,2780.6,0.37764929]
[1740239896663,6.0855,2781.5,2780.5,0.04569183]
[1740239896664,3.5957,2781.1,2780.5,0.04569183]
[1740239896859,3.59583,2781.0,2780.7,0.04551158]
[1740239897096,3.59597,2780.9,2780.7,0.33810526]
[1740239897296,3.59608,2780.8,2780.7,0.29259368]
[1740239898074,3.59597,2780.9,2780.7,0.29259368]
[1740239898298,3.59608,2780.8,2780.7,0.29259368]
[1740239898464,3.59608,2780.8,2780.4,0.18004291]
[1740239898659,3.59531,2781.4,2780.4,0.18004291]
[1740239898892,6.0855,2781.5,2780.4,0.18004291]
[1740239899060,3.5961,2780.8,2780.4,0.18004291]
[1740239899475,3.59617,2780.8,2780.4,0.18004291]
[1740239899698,3.59561,2781.2,2780.4,0.18004291]
[1740239899902,3.59578,2781.1,2780.4,3.59658]
[1740239900194,3.5957,2781.1,2780.5,0.04594992]
[1740239900395,3.59597,2780.9,2780.5,0.04594992]
[1740239900597,3.59574,2781.1,2780.5,0.04594992]
[1740239900808,3.59552,2781.3,2780.5,3.64240992]
[1740239900997,3.59561,2781.2,2780.6,3.59633]
[1740239901211,6.0855,2781.5,2780.6,3.59633]
[1740239901212,6.0855,2781.5,2780.6,0.75984179]
[1740239901412,9.68072,2781.5,2780.7,3.64193967]
[1740239901720,3.59584,2781.0,2780.7,0.04576967]
[1740239901926,3.59596,2780.9,2780.7,0.04576967]
[1740239902129,3.59596,2780.9,2780.6,0.29265202]
[1740239902130,3.59561,2781.2,2780.6,0.29265202]
[1740239902331,3.59571,2781.1,2780.6,0.29265202]
[1740239902477,3.59561,2781.2,2780.7,0.04576967]
[1740239902682,3.59608,2780.8,2780.6,0.29265202]
[1740239902882,3.59608,2780.8,2780.7,0.04576967]
[1740239903384,3.59608,2780.8,2780.7,0.15832814]
[1740239903592,3.59596,2780.9,2780.7,0.15832814]
[1740239903799,3.59608,2780.8,2780.7,0.15832814]
[1740239903992,3.59597,2780.9,2780.7,0.15832814]
[1740239904192,3.59594,2781.0,2780.7,0.15832814]
[1740239904395,3.59558,2781.2,2780.7,0.15832814]
[1740239904686,3.59533,2781.4,2780.8,0.11255847]
[1740239904885,6.0855,2781.5,2780.8,0.84763228]
[1740239905235,3.59534,2781.4,2780.9,0.04271199]
[1740239906161,3.59582,2781.0,2780.9,0.04271199]
[1740239906460,3.59545,2781.3,2780.8,0.22511694]
[1740239906919,6.0855,2781.5,2780.8,0.22511694]
[1740239906920,6.0855,2781.5,2781.0,3.59581]
[1740239907119,3.59531,2781.4,2781.1,0.0422819]
[1740239907325,3.59531,2781.4,2780.8,3.82115694]
[1740239907518,3.59531,2781.4,2780.9,0.04244824]
[1740239908058,5.32,2781.5,2780.9,0.42880876]
[1740239908204,5.32,2781.5,2780.9,0.26756518]
[1740239908558,7.341,2782.0,2781.6,3.59495]
[1740239908924,7.341,2782.0,2781.7,0.04526495]
[1740239909125,5.32,2783.1,2781.7,0.04526495]
[1740239909126,0.7894,2782.9,2781.7,0.04526495]
[1740239909339,3.5942,2782.3,2781.5,3.59509]
[1740239909536,8.91416,2782.3,2781.6,3.63985349]
[1740239909852,5.32,2783.2,2781.8,0.51764611]
[1740239910056,0.7841,2783.5,2783.1,3.59311]
[1740239910236,4.37679,2783.5,2782.7,3.59357]
[1740239910408,4.37679,2783.5,2783.2,0.04693221]
[1740239910738,4.37679,2783.5,2783.3,0.04683408]
[1740239911055,6.1041,2783.5,2781.5,0.719048]
[1740239911258,0.7841,2782.7,2781.7,3.59485]
[1740239911553,8.15392438,2783.4,2781.7,3.59485]
[1740239911554,3.59299,2783.2,2782.8,0.22511694]
[1740239911708,0.7841,2783.3,2782.8,0.22511694]
[1740239911908,0.7841,2783.3,2782.8,0.17511694]
[1740239912110,6.1041,2783.7,2782.8,0.17511694]
[1740239912441,9.69649,2783.7,2783.0,3.59319]
[1740239912645,9.69649,2783.7,2782.8,3.76856694]
[1740239912646,0.7841,2783.7,2782.8,0.17511694]
[1740239912958,5.32,2784.1,2783.6,3.59234]
[1740239913222,0.7841,2784.2,2783.6,3.59237]
[1740239913507,0.7841,2784.2,2783.7,3.59232]
[1740239913809,0.7841,2784.2,2783.1,0.29238855]
[1740239913986,3.59218,2783.9,2783.1,3.88546855]
[1740239914165,3.59218,2783.9,2783.8,0.29238855]
[1740239914366,12.665,2784.6,2783.8,0.29238855]
[1740239914367,13.4491,2784.6,2783.8,0.29238855]
[1740239914895,3.59179,2784.2,2783.8,0.29238855]
[1740239915091,3.59156,2784.4,2783.8,0.29238855]
[1740239915297,4.96217438,2785.1,2783.3,3.59284]
[1740239915298,4.41362,2785.2,2783.9,0.29238855]
[1740239915482,3.59069,2785.0,2784.1,3.59172]
[1740239915682,4.41362,2785.2,2784.1,0.74760586]
[1740239915683,4.41363,2785.2,2784.1,0.74760586]
[1740239915883,0.8231,2785.2,2784.0,5.771]
[1740239916195,3.59007,2785.5,2784.7,3.59103]
[1740239916395,0.8231,2785.8,2784.8,3.59092]
[1740239916760,7.342,2786.0,2784.8,3.59092]
[1740239916975,0.8281,2786.3,2784.8,3.59092]
[1740239916976,1e-08,2784.9,2784.8,3.59092]
[1740239917466,1e-08,2784.9,2784.8,21.75838644]
[1740239917787,1e-08,2784.9,2784.8,23.74332808]
[1740239917990,1e-08,2784.9,2784.8,24.14332808]
[1740239919095,1e-08,2784.9,2784.8,18.05330855]
[1740239919283,1e-08,2784.9,2784.8,14.46238855]
[1740239919483,1e-08,2784.9,2784.8,3.88330855]
[1740239919676,1e-08,2784.9,2784.8,0.29238855]
[1740239920104,3.59079001,2784.9,2784.8,0.29238855]
[1740239920400,1e-08,2784.9,2784.8,0.29238855]
[1740239920635,1e-08,2784.9,2784.2,0.40467436]
[1740239920762,3.59085001,2784.9,2784.2,0.40467436]
[1740239920967,3.59118,2784.6,2784.2,0.40467436]
[1740239921197,1e-08,2784.9,2784.2,0.40467436]
[1740239921385,1e-08,2784.9,2784.3,3.59144]
[1740239921911,1e-08,2784.9,2784.3,3.59156]
[1740239922717,1e-08,2784.9,2784.0,5.37]
[1740239922903,1e-08,2784.9,2784.2,3.59168]
[1740239923198,3.59080001,2784.9,2784.2,3.59168]
[1740239923400,3.59080001,2784.9,2784.0,3.59192]
[1740239923567,1e-08,2784.9,2783.4,3.59271]
[1740239923765,3.59223,2783.8,2783.2,5.37]
[1740239924099,3.59235,2783.7,2783.2,5.37]
[1740239924299,3.59235,2783.7,2782.9,0.15507789]
[1740239924512,3.59266,2783.5,2782.9,0.15507789]
[1740239924800,5.32,2784.0,2782.9,0.15507789]
[1740239925003,3.59221,2783.8,2782.9,3.59328]
[1740239925166,8.91196,2784.0,2783.1,3.59308]
[1740239925369,5.32,2784.0,2782.8,0.7045035]
[1740239925596,5.32,2784.0,2783.3,3.59276]
[1740239926367,5.32,2784.0,2783.7,3.59223]
[1740239926573,5.32,2784.0,2783.4,3.59262]
[1740239926780,5.32,2784.0,2783.2,3.59296]
[1740239926990,3.59225,2783.8,2783.0,3.59321]
[1740239927316,3.59243,2783.7,2782.9,3.59335]
[1740239927524,3.59243,2783.7,2782.9,3.59332]
[1740239927806,3.59263,2783.5,2782.9,3.59333]
[1740239927971,0.7835,2783.6,2782.7,3.59363]
[1740239928167,0.7835,2783.6,2783.1,3.59307]
[1740239928395,5.32,2784.0,2783.2,3.59297]
[1740239928592,5.32,2784.0,2783.2,3.59289]
[1740239928991,5.32,2784.0,2782.6,3.0]
[1740239929194,3.59269,2783.5,2782.5,5.764]
[1740239929393,3.59269,2783.5,2782.9,3.59336]
[1740239929595,3.59269,2783.5,2782.7,3.59361]
[1740239929813,3.593,2783.2,2782.5,3.59384]
[1740239930038,3.59287,2783.3,2782.1,5.37]
[1740239930309,0.7516,2783.3,2782.1,5.37]
[1740239930517,0.7516,2783.3,2782.1,9.899959]
[1740239930518,3.59347,2782.9,2782.1,9.899959]
[1740239930828,3.5935,2782.8,2782.1,9.899959]
[1740239931187,5.32,2783.2,2781.8,3.74693105]
[1740239931377,3.5937,2782.7,2781.8,0.15218105]
[1740239931571,3.59339,2782.9,2782.1,3.59433]
[1740239931771,3.59339,2782.9,2782.2,3.59426]
[1740239931988,3.59368,2782.7,2781.8,3.59479]
[1740239932325,3.5935,2782.8,2782.1,3.59429]
[1740239932505,3.59316,2783.1,2782.3,3.59408]
[1740239932706,3.5935,2782.8,2782.1,3.59429]
[1740239932882,3.59364,2782.7,2782.1,3.59429]
[1740239933410,9.66451,2783.3,2781.8,0.896479]
[1740239933411,6.0716,2783.3,2781.8,0.896479]
[1740239933612,6.0716,2783.3,2782.6,3.5937]
[1740239933800,6.0716,2783.3,2782.0,3.59453]
[1740239934000,3.59359,2782.8,2782.0,3.59453]
[1740239934188,6.0716,2783.3,2781.9,0.6266479]
[1740239934395,3.593,2783.2,2782.5,3.59386]
[1740239934587,3.59325,2783.0,2782.3,3.59406]
[1740239934792,3.593,2783.2,2782.4,3.59389]
[1740239935004,3.59315,2783.1,2782.4,3.59389]
[1740239935511,3.59325,2783.0,2782.3,3.59414]
[1740239935698,3.593,2783.2,2782.5,3.59378]
[1740239936017,3.593,2783.2,2782.3,3.59411]
[1740239936311,3.593,2783.2,2782.5,3.59385]
[1740239936511,3.593,2783.2,2782.3,3.59411]
[1740239936714,3.593,2783.2,2782.5,3.59386]
[1740239937016,3.593,2783.2,2782.3,3.59405]
[1740239937213,3.593,2783.2,2782.5,3.59388]
[1740239937520,3.59312,2783.1,2782.5,3.59388]
[1740239938018,3.59324,2783.0,2782.3,3.59405]
[1740239938193,1e-08,2783.4,2782.3,5.37]
[1740239938398,1e-08,2783.4,2783.3,3.59285]
[1740239940320,1e-08,2783.4,2783.3,18.31285]
[1740239940627,1e-08,2783.4,2783.3,17.76285]
[1740239940828,1e-08,2783.4,2783.3,12.02625978]
[1740239941014,1e-08,2783.4,2783.3,12.41025978]
[1740239941327,1e-08,2783.4,2783.3,15.41025978]
[1740239941625,1e-08,2783.4,2783.3,12.40925978]
[1740239942007,1e-08,2783.4,2783.3,15.40925978]
[1740239942218,1e-08,2783.4,2783.3,15.81401101]
[1740239942631,1e-08,2784.3,2784.2,6.59169]
[1740239942796,1e-08,2784.3,2784.2,12.620859]
[1740239943629,1e-08,2784.3,2784.2,13.13801957]
[1740239944738,1e-08,2784.3,2784.2,21.93801957]
[1740239944950,1e-08,2784.3,2784.2,22.48801957]
[1740239945228,1e-08,2784.3,2784.2,22.64020062]
[1740239945542,0.005,2786.3,2784.6,0.2]
[1740239945704,0.005,2786.3,2785.7,3.58972]
[1740239946128,0.005,2786.3,2785.3,3.59014]
[1740239946332,0.005,2786.3,2786.0,3.58934]
[1740239946626,0.005,2786.3,2786.2,3.58911]
[1740239947354,0.005,2786.3,2786.2,8.95911]
[1740239947515,0.005,2786.3,2786.2,10.213955]
[1740239948360,0.005,2786.3,2786.2,5.37]
[1740239948518,0.005,2786.3,2786.2,9.25137428]
[1740239949308,3.58746,2787.5,2786.6,3.58849]
[1740239949506,0.7937,2787.9,2786.6,5.37]
[1740239949707,3.58784,2787.2,2786.6,5.37]
[1740239949966,3.58759,2787.4,2786.6,8.9585]
[1740239950255,4.38072,2787.9,2786.6,5.37]